Cogmind - Beta 13 @@@ ROGUE MODE // 2024.04.23 @ 09:23:06 // Winter2019/RPGLIKE Player: Bulbasornado Result: Self-destructed Performance ------------- Evolutions (2) 1000 Regions Visited (4) 800 Robots Destroyed (75) 375 Value Destroyed (2179) 2179 Prototype IDs (18) 360 Alien Tech Used (0) 0 Bonus (615) 615 TOTAL SCORE: 5329 Bonus ------- High Alert Combat Kills 550 Follower Combat Kills 65 Cogmind --------- Core Integrity 435/600 Matter 290/300 Energy 156/160 System Corruption 0% Temperature Cool (0) Movement Flying (40) Location -8/Materials Parts ------- > --- POWER (1+1) ------ Light Nuclear Core > --- PROPULSION (4+1) - Flightbrick > --- UTILITY (5+3) ---- Targeting Computer Targeting Computer Targeting Computer Hardened Medium Armor Plating Rainbow Chip (+) > --- WEAPON (3+1) ----- Beamcaster Ion Cannon Subdweller Machine Gun > --- INVENTORY (0) ---- (None) Peak State ------------ > --- POWER ------------ Light Nuclear Core > --- PROPULSION ------- Flightbrick > --- UTILITY ---------- Improved Signal Interpreter Targeting Computer Targeting Computer Targeting Computer Hardened Medium Armor Plating Rainbow Chip > --- WEAPON ----------- Beamcaster Ion Cannon Subdweller Machine Gun > --- INVENTORY -------- (None) [Rating: 71] Favorites ----------- Power Light Nuclear Core Engine Light Ion Engine Power Core Light Nuclear Core Propulsion Flight Unit Treads Light Treads Flight Unit Flight Unit Utility Targeting Computer Device Seismic Detector Processor Targeting Computer Hackware Hacking Suite Protection Improved Light Armor Plating Weapon Light Assault Rifle Energy Gun Medium Laser Energy Cannon Ion Cannon Ballistic Gun Light Assault Rifle Ballistic Cannon Light Cannon Launcher Grenade Launcher Build | -11 -10 -10 -10 -8 ------- Run | Yrd Mat Min Sub Mat Slots Evolved 9 | 2 5 . 1 1 Power . | . . . . . Propulsion 3 | 1 1 . 1 . Utility 4 | . 3 . . 1 Weapon 2 | 1 1 . . . Parts Attached 39 | 6 18 5 7 3 Power 2 | 1 . 1 . . Engine 1 | 1 . . . . Core 1 | . . 1 . . Reactor . | . . . . . Propulsion 9 | 2 6 . 1 . Treads 2 | 2 . . . . Leg . | . . . . . Wheel . | . . . . . Hover . | . . . . . Flight 7 | . 6 . 1 . Utility 12 | 1 5 3 1 2 Device 2 | 1 1 . . . Storage . | . . . . . Processor 6 | . 3 1 1 1 Hackware 1 | . 1 . . . Protection 3 | . . 2 . 1 Artifact . | . . . . . Weapon 16 | 2 7 1 5 1 Energy Gun 4 | . 1 1 2 . Energy Cannon 2 | . . . 1 1 Ballistic Gun 6 | 2 3 . 1 . Ballistic Cannon 2 | . 1 . 1 . Launcher 2 | . 2 . . . Special Weapon . | . . . . . Impact Weapon . | . . . . . Slashing Weapon . | . . . . . Piercing Weapon . | . . . . . Special Melee Weapon . | . . . . . Unidentified Prototypes 1 | . . . 1 . Parts Lost . | . . . . . Power . | . . . . . Propulsion . | . . . . . Utility . | . . . . . Weapon . | . . . . . Highest Loss Streak . | . . . . . To Critical Strikes . | . . . . . Average Slot Usage (%) 91 | . 99 100 77 52 Engine 4 | . 10 . . . Core 3 | . . 8 7 5 Flight 23 | . 28 27 15 5 Device 1 | . 3 . . . Processor 21 | . 18 27 23 21 Hackware 5 | . 9 1 . . Protection 3 | . . 7 7 5 Energy Gun 9 | . 8 9 10 8 Ballistic Gun 9 | . 12 9 6 5 Ballistic Cannon 5 | . 4 9 5 . Naked Turns . | . . . . . Heaviest Build 28 | 7 11 15 21 28 Greatest Support 45 | 8 45 17 29 29 Greatest Overweight (x) . | . . . . . Average Overweight (x) . | . . . . . Largest Inventory Capacity . | . . . . . Average Capacity . | . . . . . Most Carried . | . . . . . Average Carried . | . . . . . Final Capacity . | . . . . . Final Carried . | . . . . . Class Distribution -------------------- 41% | Scavenger-Gunner 37% | Hacker-Gunner 7% | Scavenger-Mutant 6% | Gunner 5% | Hacker-Mutant Dominant Class ---------------- Hacker-Gunner | -10/Materials Scavenger-Gunner | -10/Mines Scavenger-Gunner | -10/Subcaves Hacker-Gunner | -8/Materials Resources | -11 -10 -10 -10 -8 ----------- Run | Yrd Mat Min Sub Mat Matter Collected 2045 | 217 1236 214 326 52 Remotely . | . . . . . Salvage Created 2102 | 16 1190 185 517 194 Parts 175 | 2 95 13 40 25 Haulers Intercepted 3 | . 2 . . 1 Recyclers Shooed . | . . . . . Parts Field Recycled . | . . . . . Retrieved Matter . | . . . . . Parts Self-Destructed 16 | . . . 16 . Prevented . | . . . . . Kills | -11 -10 -10 -10 -8 ------- Run | Yrd Mat Min Sub Mat Combat Hostiles Destroyed 63 | . 36 7 16 4 Guns 48 | . 28 5 11 4 Cannons 15 | . 8 2 5 . Classes Destroyed 14 | 1 7 2 3 1 Worker 2 | . 2 . . . Builder 1 | . 1 . . . Tunneler 3 | 1 2 . . . Hauler 3 | . 2 . . 1 Operator 3 | . 2 . . 1 Turret 2 | . . . 2 . Watcher 6 | . 3 . . 3 Swarmer 19 | . 9 . 7 3 Grunt 32 | . 27 5 . . Sentry 1 | . . . . 1 Demolisher 1 | . . 1 . . Artisan 1 | . . . 1 . Subdweller 9 | . . . 9 . Assembled 1 | . . 1 . . Best Kill Streak 7 | 1 7 2 6 6 Combat Bots Only 7 | . 7 2 4 3 Max Kills in Single Turn 2 | 1 2 1 2 1 Gunslinging 1 | . 1 . 1 . Exploded . | . . . . . Melee . | . . . . . Uniques/NPCs Destroyed . | . . . . . Combat | -11 -10 -10 -10 -8 -------- Run | Yrd Mat Min Sub Mat Hostile Shots Fired 223 | . 122 30 60 11 Missed 89 | . 49 12 26 2 Damage Taken 1816 | . 803 325 583 105 Core 1415 | . 667 255 408 85 Absorbed by Shields . | . . . . . Redirected to Core 1096 | . 420 243 372 61 Core Remaining (%) 81 | 100 . . 62 . Volleys Fired 402 | 1 263 35 83 20 Largest 3 | 2 3 3 3 3 Hottest 170 | 40 105 120 170 165 Shots Fired 822 | 2 491 83 195 51 Gun 622 | 2 378 48 148 46 Cannon 189 | . 102 35 47 5 Launcher 11 | . 11 . . . Special . | . . . . . Kinetic 502 | 2 331 59 94 16 Thermal 309 | . 149 24 101 35 Explosive 11 | . 11 . . . Electromagnetic . | . . . . . Robot Hit Streak 42 | 1 35 39 42 32 Robot Miss Streak 2 | . 2 1 1 2 Penetration Max . | . . . . . Secondary Targets 5 | . 4 . 1 . Max Gunslinging Chain 1 | . 1 . 1 . Shots Hit Robots 356 | 1 169 59 95 32 Core Hits 139 | 1 76 23 29 10 Critical Kills 1 | . 1 . . . Critical Parts Destroyed 2 | . 1 . . 1 Critical Strikes 20 | . 11 1 4 4 Burn 14 | . 6 1 4 3 Destroy 3 | . 2 . . 1 Blast 3 | . 3 . . . Melee Attacks . | . . . . . Impact . | . . . . . Slashing . | . . . . . Piercing . | . . . . . Sneak Attacks . | . . . . . Combat Hostiles . | . . . . . Follow-up Attacks . | . . . . . Damage Inflicted 5597 | 14 2505 799 1555 724 Guns 3983 | 14 1657 486 1202 624 Cannons 1323 | . 557 313 353 100 Explosions 291 | . 291 . . . Melee . | . . . . . Ramming . | . . . . . Kinetic 2644 | 14 1337 481 620 192 Thermal 2814 | . 1029 318 935 532 Explosive 139 | . 139 . . . Electromagnetic . | . . . . . Impact . | . . . . . Slashing . | . . . . . Piercing . | . . . . . Highest Corruption . | . . . . . Average Corruption . | . . . . . Corruption Purged . | . . . . . Corruption Blocked . | . . . . . Overload Shots . | . . . . . Overflow Damage 110 | . 76 . . 34 Projectiles 34 | . . . . 34 Explosions 76 | . 76 . . . Melee . | . . . . . Knockbacks 16 | . 5 5 6 . Impact . | . . . . . Kinetic 15 | . 5 4 6 . Secondary 1 | . . 1 . . Self-Inflicted Damage 74 | . 74 . . . Shots 1 | . 1 . . . Rammed . | . . . . . Targets Rammed . | . . . . . Kicked . | . . . . . Crushed . | . . . . . Highest Temperature 366 | . 366 9 . 204 Average Temperature 83 | . 87 3 . 64 Received Heat Transfer 447 | . 306 102 12 27 Effects 2 | . 2 . . . Energy Bleed 1 | . 1 . . . Interference 1 | . 1 . . . Siege Activations . | . . . . . Robots Corrupted . | . . . . . Combat Hostiles . | . . . . . Parts Fried . | . . . . . Impact Corruptions . | . . . . . Robots Melted . | . . . . . Combat Hostiles . | . . . . . Parts Melted 3 | . . 1 1 1 Heat Transferred 6719 | . 2999 925 1793 1002 Parts Sabotaged . | . . . . . Parts Stolen . | . . . . . Parts Stripped . | . . . . . Power Chain Reactions . | . . . . . Alert | -11 -10 -10 -10 -8 ------- Run | Yrd Mat Min Sub Mat Peak Influence 1356 | 5 1356 800 . 352 Initial 528 | . 3 528 . 247 Average 653 | . 724 639 . 257 Maximum Alert Level 4 | . 4 3 . 1 Low Security (%) 11 | 100 13 . . 21 Level 1 9 | . 5 . . 78 Level 2 39 | . 28 76 . . Level 3 26 | . 30 23 . . Level 4 13 | . 21 . . . Level 5 . | . . . . . High Security . | . . . . . Max Security . | . . . . . Squads Dispatched 12 | . 12 . . . Investigation 12 | . 12 . . . Extermination . | . . . . . Reinforcement . | . . . . . Assault . | . . . . . Garrison . | . . . . . Intercept . | . . . . . Searches Triggered . | . . . . . Construction Impeded . | . . . . . Haulers Reinforced . | . . . . . Active Scanning Responses . | . . . . . Cargo Convoy Interrupts . | . . . . . Stealth | -11 -10 -10 -10 -8 --------- Run | Yrd Mat Min Sub Mat Distress Signals . | . . . . . Communications Jammed . | . . . . . Distress Signals . | . . . . . Times Spotted 110 | . 44 27 32 7 Peak Tracking Total 20 | . 5 20 5 3 Tactical Retreats 4 | . 1 . 3 . Traps | -11 -10 -10 -10 -8 ------- Run | Yrd Mat Min Sub Mat Traps Triggered 2 | . 2 . . . Indirectly . | . . . . . Trap Hack Attempts . | . . . . . Triggered . | . . . . . Disarmed . | . . . . . Reprogrammed . | . . . . . Reused . | . . . . . Traps Extracted . | . . . . . Installed . | . . . . . Triggered . | . . . . . Machines | -11 -10 -10 -10 -8 ---------- Run | Yrd Mat Min Sub Mat Machines Disabled 41 | . 30 5 2 4 Max in Single Turn 3 | . 3 1 1 1 Machines Repaired . | . . . . . Machines Dismantled . | . . . . . Machines Sabotaged . | . . . . . Overloaded Fab Kills . | . . . . . Hacking | -11 -10 -10 -10 -8 --------- Run | Yrd Mat Min Sub Mat Machines Accessed 15 | . 11 . 2 2 Terminals 10 | . 8 . . 2 Fabricators . | . . . . . Repair Stations 1 | . 1 . . . Recycling Units 2 | . 2 . . . Scanalyzers . | . . . . . Garrison Access . | . . . . . Total Hacks 89 | . 67 . 10 12 Successful 70 | . 51 . 10 9 Failed 18 | . 15 . . 3 Catastrophic 1 | . 1 . . . Database Lockouts 1 | . 1 . . . Manual 53 | . 46 . . 7 Terminals 61 | . 49 . . 12 Fabricators . | . . . . . Repair Stations 10 | . 10 . . . Recycling Units 8 | . 8 . . . Scanalyzers . | . . . . . Garrison Access . | . . . . . Terminal Hacks 43 | . 26 . 10 7 Record 9 | . . . 9 . Part Schematic 1 | . 1 . . . Robot Analysis 13 | . 10 . . 3 Prototype ID Bank 7 | . 6 . . 1 Machine Index 1 | . 1 . . . Unreport Threat 2 | . . . . 2 Locate Traps 7 | . 6 . . 1 Hauler Manifests 1 | . 1 . . . Registered Prototypes 1 | . 1 . . . Derelict Proto ID Bank 1 | . . . 1 . Fabricator Hacks . | . . . . . Repair Station Hacks 7 | . 7 . . . Refit 7 | . 7 . . . Recycling Unit Hacks 2 | . 2 . . . Retrieve Components 2 | . 2 . . . Scanalyzer . | . . . . . Garrison Access Hacks . | . . . . . Unauthorized Hacks 18 | . 16 . . 2 Terminals 15 | . 13 . . 2 Botnet 8 | . 6 . . 2 Search 7 | . 7 . . . Fabricators . | . . . . . Repair Stations 1 | . 1 . . . Mechanics 1 | . 1 . . . Recycling Units 2 | . 2 . . . Tunnel 2 | . 2 . . . Scanalyzers . | . . . . . Garrison Access . | . . . . . Data Cores Recovered 2 | . 2 . . . Used 2 | . 2 . . . Hacking Detections 11 | . 9 . . 2 Full Trace Events 2 | . 2 . . . Feedback Events . | . . . . . Feedback Blocked . | . . . . . Robot Schematics Acquired . | . . . . . Robots Built . | . . . . . Authchips . | . . . . . Time . | . . . . . Total Robot Build Rating . | . . . . . Part Schematics Acquired 1 | . 1 . . . Parts Built . | . . . . . Authchips . | . . . . . Time . | . . . . . Total Part Build Rating . | . . . . . Parts Repaired . | . . . . . Time . | . . . . . Parts Recycled . | . . . . . Recycled Matter . | . . . . . Retrieved Matter . | . . . . . Retrieved Components 13 | . 13 . . . Parts Scanalyzed . | . . . . . Part Schematics Acquired . | . . . . . Parts Damaged . | . . . . . Bothacking | -11 -10 -10 -10 -8 ------------ Run | Yrd Mat Min Sub Mat Used RIF Installer . | . . . . . Robots Hacked . | . . . . . Non-combat . | . . . . . Combat . | . . . . . Robot Hacks Applied . | . . . . . Relay Couplers Released . | . . . . . Fabnet Peak Effective % . | . . . . . Robots Rewired . | . . . . . Allies Hacked . | . . . . . Hacks Repelled . | . . . . . Allies | -11 -10 -10 -10 -8 -------- Run | Yrd Mat Min Sub Mat Total Allies 2 | . . 2 . . Largest Group 2 | . . 2 2 . Highest-Rated Group 49 | . . 45 49 . Highest-Rated Ally 31 | . . 31 31 . Total Orders . | . . . . . Ally Attacks 16 | . . 2 14 . Total Damage 311 | . . 42 269 . Kills 2 | . . 1 1 . Allies Corrupted . | . . . . . Allies Melted . | . . . . . Intel | -11 -10 -10 -10 -8 ------- Run | Yrd Mat Min Sub Mat Robot Analysis Total 13 | . 10 . . 3 Derelict Logs Recovered 4 | . . 2 2 . Drone Launches . | . . . . . Drone Recoveries . | . . . . . Exploration | -11 -10 -10 -10 -8 ------------- Run | Yrd Mat Min Sub Mat Turns Passed 3091 | 39 1414 660 815 163 Spaces Moved 3788 | 55 1416 705 1386 226 Core 162 | 55 107 . . . Treads 2 | . 2 . . . Legs . | . . . . . Wheels . | . . . . . Hover . | . . . . . Flight 3624 | . 1307 705 1386 226 Fastest Speed 34 | 50 34 34 34 40 Average Speed 36 | 50 35 34 37 40 Slowest Speed 160 | 50 160 34 40 40 Overloaded Moves . | . . . . . Propulsion Burnouts . | . . . . . Robots Hopped 27 | . 16 8 2 1 Cave-ins Triggered . | . . . . . Exploration Rate (%) 58 | 3 99 99 71 19 Regions Visited 4 Branch Regions 2 Pre-discovered Areas 4 | . 2 1 1 . Known Exits Taken . | . . . . . Unknown Exits Taken 4 | 1 1 1 1 . Scrap Searched 6 | . . 1 5 . Spaces Dug 5 | . . . 5 . Terrain Destroyed 184 | . 178 . 5 1 Melee . | . . . . . Projectile 6 | . . . 5 1 AOE 178 | . 178 . . . Terrain Rammed . | . . . . . Walls Destroyed . | . . . . . Machines Disabled . | . . . . . Actions | -11 -10 -10 -10 -8 --------- Run | Yrd Mat Min Sub Mat Total 4815 | 61 1906 1056 1535 257 Wait 514 | . 176 295 43 . Move 3731 | 54 1383 689 1381 224 Hop 26 | . 16 7 2 1 Pick Up . | . . . . . Fast Attach 35 | 6 15 5 6 3 Attach . | . . . . . Detach 3 | . . 2 . 1 Swap 4 | . 3 . 1 . Drop 26 | . 13 3 8 2 Fire 402 | 1 263 35 83 20 Melee . | . . . . . Ram . | . . . . . Kick . | . . . . . Crush . | . . . . . Escape Stasis . | . . . . . Rewire . | . . . . . Trap . | . . . . . Miscellaneous 74 | . 37 20 11 6 Route ------- -11/Scrapyard -10/Materials (discovered 5 exits: [*Mat x3] / [*Min x2]) -10/Mines (discovered 4 exits: [*Mat x2] / [*Exi] / *Sub) -10/Subcaves (discovered 2 exits: *Mat / [*Rec]) -8/Materials History --------- Turn | Location | Event 3 | -11/Scrapyard | Discovered new exit (range 16) 7 | -11/Scrapyard | Upgraded with Weapon slot (x1) 11 | -11/Scrapyard | Upgraded with Propulsion slot (x1) 40 | -11/Scrapyard | Entered Materials 60 | -10/Materials | Upgraded with Utility slot (x1) 75 | -10/Materials | Discovered new exit (range 13) 108 | -10/Materials | Discovered new exit (range 10) 131 | -10/Materials | Upgraded with Propulsion slot (x1) 276 | -10/Materials | Destroyed 7 combat bots 314 | -10/Materials | Reached level 2 367 | -10/Materials | Upgraded with Utility slot (x1) 407 | -10/Materials | Discovered new exit (range 13) 475 | -10/Materials | Upgraded with Weapon slot (x1) 547 | -10/Materials | Discovered new exit (range 15) 557 | -10/Materials | Discovered new exit (range 9) 581 | -10/Materials | Reached level 3 672 | -10/Materials | Central database locked down 774 | -10/Materials | Build established: Hacker-Gunner 782 | -10/Materials | Upgraded with Utility slot (x1) 792 | -10/Materials | Reached level 4 1122 | -10/Materials | Reached level 5 1454 | -10/Materials | Entered Mines 1463 | -10/Mines | Learned 2 Materials zone layouts 1514 | -10/Mines | Reached level 6 1535 | -10/Mines | Assembled infested the area 1571 | -10/Mines | Met 8R-AWN 1597 | -10/Mines | Learned location of Zion (-6) 1677 | -10/Mines | Discovered new exit (range 5) 1728 | -10/Mines | Discovered new exit (range 8) 1781 | -10/Mines | Discovered new exit (range 14) 1823 | -10/Mines | Build established: Scavenger-Gunner 2100 | -10/Mines | Discovered new exit (range 3) 2114 | -10/Mines | Entered Subcaves 2114 | -10/Subcaves | Accompanied by 2 allies 2121 | -10/Subcaves | Shifting Twisted Machinery released Mak. Light Armor Plating 2145 | -10/Subcaves | Led the pair of lost Derelicts to an unsafe place 2282 | -10/Subcaves | A swath of the cavern ceiling suddenly collapsed 2418 | -10/Subcaves | A swath of the cavern ceiling suddenly collapsed 2438 | -10/Subcaves | Met a Zionite searching for "candidates" 2448 | -10/Subcaves | A Subdweller sparked back to life 2473 | -10/Subcaves | Upgraded with Propulsion slot (x1) 2475 | -10/Subcaves | Found Prototype Flight Unit 2475 | -10/Subcaves | Identified Flightbrick 2476 | -10/Subcaves | Attached Flightbrick, gained temporary slots: Utility x3 2530 | -10/Subcaves | Ambushed by Subdwellers from Twisted Machinery 2579 | -10/Subcaves | Shifting Twisted Machinery released Sub. Laser 2712 | -10/Subcaves | Visited Clippyterm 2713 | -10/Subcaves | Learned Factory garrison access intel 2795 | -10/Subcaves | Learned Materials emergency access door positions 2813 | -10/Subcaves | Shifting Twisted Machinery released Flamer 2824 | -10/Subcaves | Discovered new exit (range 10) 2827 | -10/Subcaves | Shifting Twisted Machinery released Flamer 2845 | -10/Subcaves | Visited 4L-MR0's lab 2850 | -10/Subcaves | Found Rainbow Chip 2852 | -10/Subcaves | Attached Rainbow Chip, gained temporary slots: Power, Propulsion, Utility, Weapon 2876 | -10/Subcaves | Core integrity fell below 50% 2887 | -10/Subcaves | Discovered new exit (range 13) 2929 | -10/Subcaves | Entered Materials 2931 | -8/Materials | Reached level 7 2950 | -8/Materials | Reached level 8 3016 | -8/Materials | Core integrity fell below 50% 3090 | -8/Materials | Upgraded with Utility slot (x1) 3092 | -8/Materials | Self-destructed Last Messages --------------- Tier: 3 An upgrade to the W-16 Scout, Informers improve on the Scout's sensor range, and have access to even more specific signal interpretation data. They are also capable of jamming weaker sensors within their area of influence, though as unarmed surveillance units rather than front-line combatants, agility is preferred over additional armor to protect their systems from electromagnetic damage. 03067_ Acquired 21 matter. 03068_ Acquired 5 matter. 03073_ Destroyed Imp. Hover Unit. 03077_ W-25 Informer destroyed. 03080_ Destroyed Imp. Sensor Array. 03083_ Destroyed Lgt. Deuterium Engine. 03083_ W-25 Informer destroyed. 03089_ Acquired 10 matter. 03090_ Upgraded: Utility Slot (+1) 03090_ Upgraded: Heat Dissipation (+6) 03090_ Acquired Imp. Signal Interpreter. 03091_ Discarded Imp. Signal Interpreter. 03092_ Temporary Utility slot lost. Map ----- +----------------------------------------------------+ | ??????????????#######????????????????????????????? | | ############### #????????????????????????????? | | #????????????????????????????? | | #????????????????????????????? | | % #????????????????????????????? | | ####+########## #????????????????????????????? | | ?# #???## ##????????????????????????????? | | # """ #????# #??????????????????????# #?? | | # """ #????# #??????????????????????# #?? | | # """ #????# #??????????????????????# #?? | | #[ #????# #??????????????????????# #?? | | # !!! #????# #?????????????????????## ### | | ## !!* #????# #??????????????????#### | | ?# !! #????# #?????????????????? | | ?# #????# #?????????????????? " | | ?############### #?????????????????? """ | | ???# T # #??????????????????#### """ " | | ???# """ # #?????????????????????# """ | | ???# """ # #?????????????????????# | | ???# """ # #?????????????????????# | | ???# """ # #?????????????????????# | | ???# " " !# #?????????????#???????# | | ???# # ##?????????? #???????# | | ???#####+####+## ;########## #???????# ####### | | ####### #??# ## u %! %$#???????# #????# | | + #??# ## % @ #????#### ##???#" | | # #??# ## u% #????# #???#" | | # #??# ###%###########+####????# "" #???#" | | """" # #### #?#%#???????????????????# T #???# | | """" + #?# #???????????????????# #???#" | | """" # ###+#######?????????????# #???#" | | ## # % #?????????????## ##???#" | | ######## # """ #????????????????????????? | | ??# # # """"" #????????????????????????? | | ??# # """"" #????????????????????????? | | ??# + """" #????????????????????????? | | ??# ##### # """ #????????????????????????? | | ####+####### # #????????????????????????? | | # # #?????????^^?????????????? | | """ # #####+######## T ?^^?????????????? | | [ """ # ! ^^?????????????? | | || " " # [/#####?????????????????????? | | | # =/%#?????????????????????????? | | ######+##### [/##????????????????????????? | | [ ####?????????????????????? | | +????????????????????? | | #+####+########## %##########????????????????????? | | # #?#!=#???######????????????????????? | | """ # """ ### ##### #?????+??????????????? | | =""" # """"" + #????????????????????? | +----------------------------------------------------+ Best States ------------- Heat Dissipation 55 Energy Generation 14 Energy Capacity 160 Matter Stores 300 Matter Capacity 300 Sight Range 16 Terrain Scan Density 10 Armor Coverage 225 Evasion (%) 63 Targeting Accuracy 15 Launcher Accuracy 20 Recoil Reduction 2 Offensive Hacking 15 Defensive Hacking 5 Item Schematics ----------------- Lgt. Armor Plating | -10/Materials | Hacked Robot Schematics ------------------ None Fabricated ------------ Nothing Alien Tech Used ----------------- None Achievements -------------- None Challenges ------------ None RPGLIKE | -11 -10 -10 -10 -8 --------- Run | Yrd Mat Min Sub Mat Levels Raised 7 | . 4 1 . 2 XP Earned 14439 | 3000 6973 1051 975 2440 XP Spent 12600 | 1100 6350 1500 1100 2550 Upgrades 25 | 3 15 2 1 4 Propulsion Slot 3 | 1 1 . 1 . Utility Slot 4 | . 3 . . 1 Weapon Slot 2 | 1 1 . . . Heat Dissipation 6 | . 5 . . 1 Mass Support 1 | 1 . . . . Ranged Accuracy 5 | . 3 2 . . Hack Attack % 3 | . 1 . . 2 Hack Defense % 1 | . 1 . . . Protomatter Created 594 | . 370 100 76 48 Integrity Restored 1456 | . 716 368 228 144 Core 1250 | . 634 244 228 144 Parts 206 | . 82 124 . . Protomatter Decayed 219 | . 79 34 106 . Game ------ Seed DrainedCouplerPit Manual? 0 Play Time 01:20:51 Cumulative 81.8 hours Start 2024.04.22 @ 14:21:44 End 2024.04.23 @ 09:23:06 Sessions 7 Manual Loads 0 Difficulty Rogue Special Mode Winter2019/RPGLIKE Game No. 37 Rogue 36 Adventurer 1 Explorer 0 Win Type - Total 2 Types 2/0/0/0/0/0/0/0/0 Lore% 48 Gallery% 44 Achievement% 36 Wizard Run 0 Options --------- Layout 0 ASCII 0 Keyboard 1 Movement Vi Keybinds 0 Fullscreen 2 Font 18/Smallcaps Map View 76x50 Zoom Use 0% Tactical HUD 1 Map Filters NONE Filters NONE Steam 1 RUN: 7510b842-b811-4f89-a818-5c00a1249dde